bitfinex/quotes_ETHUSD_20240707
["timestamp","ask_amount","ask_price","bid_price","bid_amount"]
[1720334694151,4.29701887,3043.9,3043.8,0.966]
[1720334694570,3.15957338,3043.9,3043.8,0.966]
[1720334694770,1.13744549,3044.2,3043.6,4.7401]
[1720334695069,1.13745314,3044.1,3043.8,0.966]
[1720334695243,1.13745314,3044.0,3043.8,0.966]
[1720334695442,1.13745314,3044.2,3043.8,0.966]
[1720334695654,1.13745314,3044.1,3043.8,0.966]
[1720334695855,1.13745314,3044.2,3043.8,0.966]
[1720334696057,2.29938,3044.3,3043.8,0.966]
[1720334696058,1.13745314,3044.1,3043.8,0.966]
[1720334696232,1.13745314,3044.2,3043.8,0.966]
[1720334696635,2.29938,3044.3,3043.8,0.966]
[1720334696931,1.13749268,3044.2,3043.8,0.966]
[1720334697155,1.13749268,3044.1,3043.8,0.966]
[1720334697329,1.13749268,3044.0,3043.8,0.966]
[1720334697524,1.13749268,3044.2,3043.8,0.966]
[1720334697826,1.13749268,3044.1,3043.8,0.966]
[1720334698039,1.13749268,3044.0,3043.8,0.966]
[1720334698278,1.13749268,3043.9,3043.8,0.966]
[1720334699369,1.13749268,3043.9,3043.6,2.2999]
[1720334699563,1.13749268,3043.8,3043.6,2.2999]
[1720334699772,2.29938,3044.3,3043.7,0.966]
[1720334700062,1.13747604,3044.2,3043.7,0.966]
[1720334700361,1.13747604,3044.1,3043.7,0.966]
[1720334700572,1.13747604,3044.0,3043.7,0.966]
[1720334700776,1.13747604,3043.9,3043.7,0.966]
[1720334700931,1.13747604,3043.8,3043.7,0.966]
[1720334702377,2.29938,3044.3,3043.7,0.966]
[1720334702705,1.13746646,3044.2,3043.7,0.966]
[1720334702983,1.13746981,3044.1,3043.7,0.966]
[1720334703145,1.13746981,3044.0,3043.7,0.966]
[1720334703347,1.13746981,3043.9,3043.7,0.966]
[1720334703582,3.004672,3044.3,3043.7,0.966]
[1720334703781,1.13747296,3044.2,3043.7,0.966]
[1720334703956,1.13747296,3044.1,3043.7,0.966]
[1720334704154,1.13746528,3044.0,3043.7,0.966]
[1720334704462,1.13746528,3043.9,3043.5,4.74486]
[1720334704665,1.13746528,3043.8,3043.7,0.966]
[1720334705251,1.13746528,3044.2,3043.7,0.966]
[1720334705446,1.13746528,3044.1,3043.7,0.966]
[1720334705865,1.13746957,3044.0,3043.7,0.966]
[1720334706184,1.13746957,3043.9,3043.7,0.966]
[1720334706477,1.13746957,3043.8,3043.7,0.966]
[1720334708545,1.13746957,3043.8,3043.2,2.4449]
[1720334708752,1.13746957,3043.7,3043.1,0.966]
[1720334709053,1.13746957,3043.7,3043.0,9.7249]
[1720334709054,2.29984,3043.7,3043.0,9.7249]
[1720334709285,1.13767731,3043.6,3043.0,9.7249]
[1720334709466,1.13767731,3043.5,3043.0,9.7249]
[1720334709665,1.13767731,3043.4,3043.0,9.7249]
[1720334709862,1.13767731,3043.4,3042.6,2.4449]
[1720334709863,1.13767731,3043.3,3042.6,2.4449]
[1720334710063,3.1603315,3042.8,3042.6,3.4109]
[1720334710288,1.72283704,3043.4,3042.8,2.4449]
[1720334710600,1.13785789,3043.3,3042.8,2.51061953]
[1720334710801,3.08186413,3043.6,3043.2,0.966]
[1720334710969,1.61816403,3043.5,3043.2,0.966]
[1720334711169,1.13769391,3043.4,3043.2,0.966]
[1720334711378,1.13769391,3043.3,3043.2,0.966]
[1720334712373,1.13771395,3043.3,3043.2,0.966]
[1720334712883,1.13771235,3043.3,3043.2,0.966]
[1720334713970,1.13775289,3043.3,3043.0,0.966]
[1720334714176,1.48153518,3043.2,3042.9,0.966]
[1720334714408,3.16044451,3043.0,3042.9,0.966]
[1720334714721,1.13775289,3043.0,3042.9,0.966]
[1720334715016,1.13775289,3043.3,3042.9,0.966]
[1720334715311,3.16048675,3043.0,3042.9,0.966]
[1720334715507,1.1377825,3043.0,3042.9,0.966]
[1720334715712,3.16050696,3043.0,3042.9,0.966]
[1720334715919,4.29828946,3043.0,3042.9,0.966]
[1720334716075,1.56761145,3043.0,3042.5,2.2862]
[1720334716411,3.16072159,3042.8,3042.6,0.966]
[1720334716931,1.13787254,3042.7,3042.6,0.966]
[1720334717203,3.16072159,3042.8,3042.6,0.966]
[1720334717582,3.16072159,3042.9,3042.7,2.2862]
[1720334717783,3.16072159,3043.1,3042.8,3.26651]
[1720334718012,3.16072159,3043.1,3043.0,0.966]
[1720334718389,4.29847946,3043.1,3043.0,0.966]
[1720334718786,4.29814953,3043.1,3043.0,0.966]
[1720334719308,1.13774546,3043.1,3043.0,0.966]
[1720334719507,3.16040407,3043.3,3043.0,0.966]
[1720334719812,2.2999,3043.6,3042.9,2.30043]
[1720334719813,4.29810168,3043.2,3042.9,2.30043]
[1720334719981,3.16040407,3043.2,3043.1,0.966]
[1720334720358,1.13768887,3043.2,3043.1,0.966]
[1720334720568,4.29809294,3043.2,3043.1,0.966]
[1720334721915,2.2999,3043.6,3043.1,0.966]
[1720334722141,1.13772455,3043.2,3043.1,0.966]
[1720334722315,2.2999,3043.6,3043.1,0.966]
[1720334722662,3.16027813,3043.2,3043.1,0.966]
[1720334722812,4.29797826,3043.2,3043.1,0.966]
[1720334723217,3.16027813,3043.2,3043.1,0.966]
[1720334723414,3.16027813,3043.3,3043.1,3.2522]
[1720334723659,4.29796059,3043.2,3043.1,3.2522]
[1720334723818,1.13768246,3043.2,3043.1,3.2522]
[1720334724235,4.29796059,3043.2,3043.1,3.2522]
[1720334725239,2.2999,3043.6,3043.1,3.2522]
[1720334725433,3.16026613,3043.2,3043.1,3.2522]
[1720334725846,4.29796193,3043.2,3043.1,3.2522]
[1720334728739,4.29799032,3043.2,3043.1,3.2522]
[1720334729155,1.13770332,3043.2,3043.1,3.2522]
[1720334729480,1.13770332,3043.2,3043.1,2.2862]
[1720334729839,1.13770332,3043.2,3042.9,2.2862]
[1720334730038,4.29816894,3043.1,3042.9,3.2522]
[1720334730247,4.29816894,3043.0,3042.9,3.2522]
[1720334730438,3.16046562,3043.0,3042.9,2.2862]
[1720334730631,4.29816894,3043.0,3042.9,2.2862]
[1720334731066,4.29816894,3043.0,3042.8,0.966]
[1720334731258,3.16046562,3043.0,3042.8,0.966]
[1720334731460,1.13770332,3042.9,3042.8,0.966]
[1720334731659,3.16046562,3042.9,3042.8,0.966]
[1720334731862,1.13770332,3043.1,3042.8,0.966]
[1720334732179,1.13785232,3043.0,3042.7,2.2862]
[1720334732482,2.30022,3043.2,3042.7,2.2862]
[1720334732659,3.16069498,3042.8,3042.7,2.2862]
[1720334733042,4.29854517,3042.8,3042.7,2.2862]
[1720334734254,1.13785019,3042.8,3042.7,2.2862]
[1720334734574,4.29854517,3042.8,3042.7,2.2862]
[1720334735291,2.30014,3043.3,3042.7,2.2862]
[1720334735464,1.13780253,3042.8,3042.7,2.2862]
[1720334735762,3.1605626,3042.9,3042.7,3.2522]
[1720334736134,1.13779468,3042.8,3042.7,3.2522]
[1720334736676,4.29835728,3042.8,3042.7,3.2522]
[1720334737040,1.13779468,3042.8,3042.7,3.2522]
[1720334737240,4.29835728,3042.8,3042.7,3.2522]
[1720334738382,1.13779468,3042.8,3042.7,3.2522]
[1720334738594,2.30014,3043.3,3042.7,3.2522]
[1720334738877,1.13781815,3043.2,3042.9,0.966]
[1720334739088,1.13781815,3043.1,3042.9,0.966]
[1720334739289,1.13781815,3043.2,3042.9,0.966]
[1720334739495,1.13781815,3043.2,3042.7,2.2862]
[1720334739496,1.13781815,3043.1,3042.7,2.2862]
[1720334739790,1.13781815,3043.0,3042.7,3.2522]
[1720334739953,1.13781815,3043.2,3042.7,3.2522]
[1720334740152,1.13781815,3043.1,3042.7,2.2862]
[1720334740467,1.13781815,3043.0,3042.7,3.2522]
[1720334740683,3.43811815,3043.1,3042.2,2.30091]
[1720334740867,3.16096289,3042.5,3042.4,0.966]
[1720334741195,1.13781815,3042.5,3042.3,3.397]
[1720334741381,1.13781815,3042.9,3042.3,3.397]
[1720334741553,1.70738597,3042.8,3042.3,2.431]
[1720334741753,0.56956782,3042.8,3042.3,3.397]
[1720334742055,1.13801669,3042.7,3042.3,3.397]
[1720334742256,1.13800371,3042.6,3042.3,3.397]
[1720334742451,1.13800371,3042.5,3042.3,3.397]
[1720334742657,1.13800371,3042.4,3042.1,2.431]
[1720334742885,3.1612178,3042.2,3042.1,3.397]
[1720334743089,1.13800371,3042.2,3042.1,3.397]
[1720334743287,3.16131993,3042.2,3042.1,2.431]
[1720334743496,4.29939819,3042.2,3042.1,3.397]
[1720334743864,3.1613222,3042.2,3042.1,3.397]
[1720334744259,4.29939819,3042.2,3042.1,3.397]
[1720334744669,3.1613222,3042.2,3042.1,3.397]
[1720334744893,4.29939819,3042.2,3042.1,3.397]
[1720334745195,3.16134158,3042.2,3042.1,2.431]
[1720334745406,4.29942455,3042.2,3042.1,2.431]
[1720334745558,4.29942455,3042.2,3042.1,3.397]
[1720334745754,3.16134158,3042.2,3042.1,3.397]
[1720334746280,3.16134158,3042.4,3042.1,3.397]
[1720334746491,3.16134158,3042.4,3042.3,0.966]
[1720334746669,4.2993275,3042.4,3042.3,0.966]
[1720334748399,4.29910069,3042.4,3042.3,0.966]
[1720334748960,1.13799724,3042.4,3042.3,0.966]
[1720334749692,1.13799724,3042.4,3042.3,3.3228]
[1720334750001,3.16110345,3042.7,3042.4,4.65756]
[1720334750161,3.16110345,3042.8,3042.6,0.966]
[1720334750361,3.16110345,3042.8,3042.7,0.966]
[1720334751184,4.2989572,3042.8,3042.7,0.966]
[1720334751560,2.30023,3043.2,3042.7,0.966]
[1720334751759,3.1606691,3042.8,3042.7,0.966]
[1720334751961,4.29850997,3042.8,3042.7,0.966]
[1720334752366,4.29850997,3042.8,3042.7,3.3228]
[1720334753177,4.29849426,3042.8,3042.7,3.3228]
[1720334754810,2.30023,3043.2,3042.7,3.3228]
[1720334754994,4.29850905,3042.8,3042.7,3.3228]
[1720334755330,3.16066842,3042.8,3042.7,3.3228]
[1720334755511,4.29850905,3042.8,3042.7,3.3228]
[1720334757260,1.13784063,3042.8,3042.7,3.3228]
[1720334757462,3.16066707,3042.8,3042.7,3.3228]
[1720334757704,2.30007,3043.4,3042.7,3.3228]
[1720334757705,3.16066707,3042.9,3042.7,3.3228]
[1720334757909,3.16066707,3042.9,3042.8,0.966]
[1720334758068,2.30007,3043.4,3042.8,0.966]
[1720334758393,3.16045385,3042.9,3042.7,2.42252444]
[1720334758598,3.16045385,3042.9,3042.8,0.966]
[1720334758807,4.29832252,3042.9,3042.8,0.966]
[1720334758999,1.13779055,3042.9,3042.8,0.966]
[1720334759303,3.16042184,3042.9,3042.8,0.966]
[1720334759461,4.29821239,3042.9,3042.8,0.966]
[1720334760007,4.29821239,3042.9,3042.8,3.2665]
[1720334760706,1.13779055,3042.9,3042.8,3.2665]
[1720334760902,2.29999,3043.5,3042.8,0.966]
[1720334761112,2.29993,3043.6,3042.8,0.966]
[1720334761113,4.29811541,3042.9,3042.8,0.966]
[1720334761277,1.13773643,3042.9,3042.8,0.966]
[1720334761638,1.13779121,3043.2,3042.8,0.966]
[1720334761787,1.13779121,3043.1,3042.8,0.966]
[1720334761989,1.13779121,3043.3,3042.8,0.966]
[1720334762298,1.60340881,3043.3,3042.8,0.966]
[1720334762505,1.13779121,3043.2,3042.7,2.3568]
[1720334762717,1.13779121,3043.2,3042.6,0.966]
[1720334762718,2.8615862,3043.2,3042.6,0.966]
[1720334762898,3.16075483,3042.7,3042.6,0.966]
[1720334763626,4.29854604,3042.7,3042.6,0.966]
[1720334763828,0.57662038,3043.1,3042.6,0.966]
[1720334764141,4.29862507,3042.7,3042.6,0.966]
[1720334764440,5.43649876,3042.7,3042.5,2.4305]
[1720334764589,4.29863395,3042.6,3042.5,3.3965]
[1720334764785,4.29880824,3042.6,3042.5,3.3965]
[1720334764999,4.29880824,3042.6,3042.1,7.28]
[1720334765251,4.29880824,3042.5,3042.2,6.325]
[1720334765531,3.16093455,3042.3,3042.2,3.966]
[1720334765713,3.43859369,3042.6,3041.9,2.359]
[1720334765903,3.16130099,3042.2,3042.1,0.966]
[1720334766106,4.29917468,3042.2,3042.1,0.966]
[1720334766505,3.16130099,3042.2,3042.0,0.966]
[1720334766693,4.29917468,3042.1,3041.8,0.966]
[1720334766890,4.29917468,3042.0,3041.8,0.966]
[1720334767132,1.13815853,3041.9,3041.6,7.28]
[1720334767305,3.16178022,3041.9,3041.6,7.28]
[1720334767503,4.29993875,3041.8,3041.7,0.966]
[1720334767714,3.16178022,3041.8,3041.7,0.966]
[1720334770232,2.30096,3042.2,3041.7,0.966]
[1720334770398,3.16183188,3041.8,3041.7,0.966]
[1720334770597,3.43929947,3042.1,3041.7,0.966]
[1720334770598,2.30104,3042.1,3041.7,0.966]
[1720334770798,1.13830351,3042.0,3041.7,0.966]
[1720334771423,3.16193922,3041.8,3041.7,0.966]
[1720334771634,4.30024273,3041.8,3041.7,0.966]
[1720334771808,1.13830618,3041.8,3041.4,3.0]
[1720334772154,4.30029156,3041.7,3041.3,0.966]
[1720334772303,3.16198538,3041.7,3041.3,3.966]
[1720334772513,3.16198538,3041.7,3041.3,3.0]
[1720334772725,3.16198538,3041.7,3041.3,0.966]
[1720334772925,3.16198538,3041.8,3041.3,3.966]
[1720334773509,2.30119,3041.9,3041.3,3.966]
[1720334773728,4.30034723,3041.8,3041.3,3.966]
[1720334773925,1.13832721,3041.7,3041.3,3.966]
[1720334774232,3.16202002,3041.8,3041.3,3.966]
[1720334774535,3.16202002,3041.8,3041.5,0.966]
[1720334774742,5.46321002,3041.9,3041.3,3.0]
[1720334774902,5.46321002,3041.9,3041.2,2.30172]
[1720334774903,4.30034207,3041.8,3041.5,0.966]
[1720334775102,3.16202002,3041.8,3041.5,0.966]
[1720334776427,5.46321002,3041.9,3041.5,0.966]
[1720334776639,1.13832219,3041.8,3041.5,0.966]
[1720334776834,5.46321002,3041.9,3041.5,0.966]
[1720334776835,5.46319574,3041.9,3041.5,0.966]
[1720334777036,1.13832201,3041.8,3041.5,0.966]
[1720334777235,5.46319574,3041.9,3041.5,0.966]
[1720334779944,2.30119,3041.9,3041.5,0.966]
[1720334780143,2.30119,3041.9,3041.0,4.66084]
[1720334780144,2.30134,3041.7,3041.2,0.966]
[1720334780369,2.30134,3041.7,3041.1,3.0]
[1720334780510,2.30134,3041.7,3041.3,0.966]
[1720334781343,2.30134,3041.7,3041.1,3.0]
[1720334781545,2.30156,3041.5,3041.0,3.325]
[1720334781751,2.30156,3041.5,3041.1,3.0]
[1720334783124,2.30165,3041.3,3041.0,2.359]
[1720334783319,2.30181,3041.1,3041.0,0.966]
[1720334783642,2.30181,3041.1,3040.9,0.966]
[1720334783960,2.30181,3041.1,3040.6,2.2933]
[1720334783961,2.30165,3041.3,3040.6,2.35906903]
[1720334784141,2.30165,3041.3,3041.0,0.966]
[1720334784352,2.30174,3041.2,3041.0,0.966]
[1720334785157,2.30174,3041.2,3040.7,3.0]
[1720334785374,2.30174,3041.2,3040.8,0.966]
[1720334785651,2.30174,3041.2,3041.0,0.966]
[1720334787156,2.30174,3041.2,3040.7,3.0]
[1720334787457,2.30174,3041.2,3040.6,2.35906869]
[1720334787458,2.30174,3041.2,3040.9,0.966]
[1720334787968,5.46414604,3041.4,3040.9,0.966]
[1720334788120,6.24071164,3041.4,3040.9,0.966]
[1720334788742,2.30151,3041.5,3041.1,0.966]
[1720334788743,3.16255604,3041.5,3041.1,0.966]
[1720334788930,3.16255604,3041.6,3041.1,3.2593]
[1720334789140,1.13847191,3041.5,3041.1,3.2593]
[1720334789338,5.46399604,3041.6,3041.1,3.2593]
[1720334789539,1.13846592,3041.5,3041.1,3.2593]
[1720334789773,0.7765336,3041.6,3041.1,3.2593]
[1720334790067,5.46382795,3041.6,3041.1,3.2593]
[1720334790273,2.30144,3041.6,3041.1,3.2593]
[1720334790564,6.60231263,3041.6,3041.1,3.2593]
[1720334790733,4.30087263,3041.5,3041.1,3.2593]
[1720334791641,6.60237263,3041.5,3041.1,3.2593]
[1720334791969,4.30087263,3041.4,3041.1,2.2933]
[1720334792336,3.16240635,3041.3,3040.9,0.966]
[1720334792647,4.30087263,3041.3,3040.9,0.966]
[1720334792877,1.13846628,3041.3,3040.9,0.966]
[1720334793058,5.46409074,3041.4,3040.9,0.966]
[1720334793365,4.30096015,3041.3,3040.9,0.966]
[1720334793567,1.13848941,3041.2,3040.9,0.966]
[1720334793762,3.16247074,3041.3,3040.9,1.03176328]
[1720334794369,3.16247074,3041.3,3041.0,2.4257]
[1720334795572,4.3009343,3041.2,3041.0,2.4257]
[1720334795876,3.16247074,3041.2,3041.0,2.4257]
[1720334796376,2.30146,3041.6,3041.0,2.4257]
[1720334796585,3.16237118,3041.2,3041.0,2.4257]
[1720334796737,4.3008254,3041.1,3041.0,2.4257]
[1720334796936,3.16237118,3041.2,3041.0,2.4257]
[1720334797147,4.3008254,3041.1,3041.0,2.4257]
[1720334797359,3.16237118,3041.1,3041.0,2.4257]
[1720334799678,4.30090889,3041.1,3041.0,2.4257]
[1720334799881,3.16243301,3041.1,3041.0,2.4257]
[1720334800175,4.30091841,3041.1,3040.7,3.0]
[1720334800478,3.16262919,3040.9,3040.8,0.966]
[1720334800675,4.30110759,3040.9,3040.6,4.72786]
[1720334800883,4.30116663,3040.8,3040.7,0.966]
[1720334801286,3.16268823,3040.8,3040.7,0.966]
[1720334801643,4.30116663,3040.8,3040.7,0.966]
[1720334802037,3.16268823,3040.8,3040.7,0.966]
[1720334802982,2.30165,3041.3,3040.7,0.966]
[1720334803277,3.16272534,3040.8,3040.7,0.966]
[1720334803440,4.30130646,3040.8,3040.7,0.966]
[1720334803841,3.16272534,3040.8,3040.7,0.966]
[1720334804269,4.30130646,3040.8,3040.7,0.966]
[1720334804638,3.16272534,3040.8,3040.7,0.966]
[1720334805041,4.30130646,3040.8,3040.7,0.966]
[1720334805336,3.16272534,3040.8,3040.7,0.966]
[1720334805571,4.30130646,3040.8,3040.7,0.966]
[1720334805942,3.16272534,3040.8,3040.7,0.966]
[1720334806280,2.30165,3041.3,3040.7,0.966]
[1720334806480,1.1386041,3041.2,3040.7,0.966]
[1720334806681,3.16278641,3040.8,3040.7,0.966]
[1720334806852,4.30135707,3040.8,3040.7,0.966]
[1720334808249,1.1386041,3040.8,3040.7,0.966]
[1720334808574,4.30135707,3040.8,3040.7,0.966]
[1720334809777,1.13859005,3040.8,3040.7,0.966]
[1720334809992,2.30165,3041.3,3040.7,0.966]
[1720334810281,3.16272595,3040.8,3040.7,0.966]
[1720334810486,4.30131631,3040.8,3040.7,0.966]
[1720334810653,4.30128004,3040.8,3040.7,0.966]
[1720334810857,1.13859036,3040.8,3040.7,0.966]
[1720334812955,1.13859329,3040.8,3040.7,0.966]
[1720334813185,1.13859329,3040.8,3040.6,2.4257]
[1720334813476,1.13859329,3040.7,3040.3,8.67319]
[1720334813682,3.16302877,3040.4,3040.3,8.67319]
[1720334813840,3.16302877,3040.4,3040.1,4.70734]
[1720334814045,2.3662,3041.0,3040.1,4.70734]
[1720334814046,4.30162206,3040.3,3040.1,5.67334]
[1720334814274,3.16302877,3040.3,3040.1,5.67334]
[1720334815175,3.16302877,3040.3,3040.2,3.0]
[1720334815372,4.30206574,3040.3,3040.2,3.0]
[1720334815682,1.45506341,3040.3,3039.7,12.95361]
[1720334815908,3.16361381,3039.8,3039.7,3.26881]
[1720334816213,4.02750559,3040.3,3039.4,4.70786]
[1720334816369,3.16392586,3039.7,3039.5,0.966]
[1720334816704,3.16392586,3039.8,3039.5,0.966]
[1720334816912,3.16392586,3039.8,3039.3,2.30315]
[1720334816913,1.13900454,3039.7,3039.3,2.30315]
[1720334817090,4.3029304,3039.7,3039.3,2.30315]
[1720334817285,7.09942344,3039.6,3038.2,0.33778045]
[1720334817489,3.16392586,3039.3,3038.3,2.30385]
[1720334817685,3.16392586,3039.0,3038.3,2.30391]
[1720334818030,4.3029304,3038.9,3038.4,0.966]
[1720334818232,3.16392586,3038.9,3038.4,0.966]
[1720334818372,4.3029304,3039.0,3038.4,0.966]
[1720334818725,2.30331,3039.1,3038.4,3.966]
[1720334818726,5.46723586,3039.1,3038.4,3.966]
[1720334819075,3.16392586,3039.1,3038.8,0.966]
[1720334819444,3.16489864,3039.4,3039.0,0.966]
[1720334819577,0.54679086,3039.4,3039.0,0.966]
[1720334819773,5.46754459,3039.5,3038.8,0.06580856]
[1720334820337,6.60688464,3039.4,3038.8,0.06580856]
[1720334820476,5.46762459,3039.4,3038.8,0.06580856]
[1720334820989,2.30309,3039.4,3038.8,0.06580856]
[1720334821215,6.60690365,3039.4,3038.8,0.06580856]
[1720334821420,5.46762459,3039.4,3038.7,2.4048]
[1720334821575,5.46779323,3039.4,3038.7,2.4048]
[1720334821910,5.46781002,3039.4,3038.7,2.47060856]
[1720334822110,3.16472002,3039.5,3038.9,2.30345]
[1720334822333,3.16472002,3039.6,3038.9,2.30345]
[1720334822618,5.33472002,3039.7,3038.9,2.30345]
[1720334822824,6.34247202,3039.7,3038.9,2.30345]
[1720334823030,2.44,3039.8,3039.4,2.30302]
[1720334823195,3.16472002,3040.2,3039.5,2.36879215]
[1720334823377,3.16472002,3040.4,3039.4,2.4048]
[1720334823575,4.45241602,3040.4,3039.6,2.30292]
[1720334823776,4.45241602,3040.4,3039.5,2.303]
[1720334823777,1.13896075,3040.3,3039.5,2.303]
[1720334824036,4.30368077,3040.3,3039.6,2.30292]
[1720334824179,3.590026,3040.4,3039.6,2.30292]
[1720334824381,2.30241,3040.3,3039.4,4.70786]
[1720334824582,2.30248,3040.2,3039.4,4.70786]
[1720334825132,2.30256,3040.1,3039.3,3.0]
[1720334825443,5.46654085,3040.2,3039.2,2.30323]
[1720334825626,4.30314294,3040.1,3039.1,5.3033]
[1720334825817,5.46657212,3040.2,3039.2,0.06579577]
[1720334826123,3.07938021,3040.2,3039.2,0.06579577]
[1720334826682,3.07938021,3040.2,3039.4,2.30308]
[1720334827999,2.30256,3040.1,3039.2,2.30321]
[1720334828197,2.30256,3040.1,3039.3,2.30314]
[1720334828409,3.94097233,3040.2,3039.4,2.30307]
[1720334828612,3.07937021,3040.2,3039.4,2.30307]
[1720334828832,2.92690123,3040.1,3039.2,2.30319]
[1720334829312,2.30264,3040.0,3039.1,3.0]
[1720334829635,2.30278,3039.8,3039.1,3.0]
[1720334829836,0.230278,3039.7,3038.9,3.0]
[1720334830036,0.230278,3039.7,3039.0,2.30338]
[1720334830733,0.230278,3039.7,3039.1,2.30328]
[1720334830897,2.30271,3039.9,3039.1,5.30328]
[1720334831294,5.46695669,3039.9,3039.1,3.0]
[1720334831495,5.46695669,3039.9,3039.0,2.30338]
[1720334832135,1.13918863,3039.8,3039.0,2.30338]
[1720334832443,2.3028,3039.8,3039.0,2.30338]
[1720334832597,2.84951465,3039.8,3038.9,3.0]
[1720334832978,7.15307144,3039.8,3038.8,2.30353]
[1720334833103,6.60641679,3039.7,3038.8,2.30353]
[1720334833441,5.46720645,3039.7,3038.8,2.30353]
[1720334834027,2.30286,3039.7,3038.8,2.30353]
[1720334834839,2.30286,3039.7,3039.0,2.30337]
[1720334835011,2.90425211,3039.7,3039.0,2.30337]
[1720334835406,3.16434645,3039.9,3039.0,2.30337]
[1720334835642,2.30264,3040.0,3038.9,3.0]
[1720334835852,4.30336154,3039.9,3039.3,2.30315]
[1720334836136,3.164249,3040.0,3039.3,2.30315]
[1720334836751,5.466889,3040.0,3039.3,2.30315]
[1720334836940,6.2501979,3040.0,3039.3,2.30315]
[1720334837240,3.164249,3040.0,3039.3,2.30315]
[1720334837738,6.60600196,3039.9,3039.1,2.30331]
[1720334837895,5.466959,3039.9,3039.1,2.30331]
[1720334838098,4.30338785,3039.8,3039.1,2.30331]
[1720334838940,2.30271,3039.9,3039.1,2.30331]
[1720334839141,4.30329308,3039.8,3039.1,2.30331]
[1720334839447,3.16418428,3039.8,3039.1,2.30331]
[1720334839622,1.13910103,3039.7,3039.1,2.30331]
[1720334839823,3.16418428,3039.8,3039.1,2.30331]
[1720334840009,1.13910103,3039.7,3039.1,2.30331]
[1720334840210,3.16418428,3039.8,3039.1,2.30331]
[1720334840434,4.30329702,3039.7,3039.1,2.30331]
[1720334840658,3.16418899,3039.7,3039.1,2.30331]
[1720334840961,3.16418899,3039.7,3039.2,2.30322]
[1720334841571,4.30327159,3039.6,3039.2,2.30322]
[1720334841725,3.16418899,3039.6,3039.2,2.30322]
[1720334842126,2.30257,3040.1,3039.2,2.30322]
[1720334842393,2.30257,3040.1,3039.0,5.30338]
[1720334842394,3.16413399,3039.7,3039.3,2.50639743]
[1720334842669,3.16413399,3039.8,3039.5,2.30301]
[1720334842869,3.16413399,3039.9,3039.5,2.30301]
[1720334843079,4.30310896,3039.8,3039.5,2.36880234]
[1720334843275,3.16413399,3039.8,3039.5,2.30301]
[1720334843638,1.13896805,3039.7,3039.5,2.30301]
[1720334843844,3.16413399,3039.8,3039.5,2.30301]
[1720334844034,1.13896815,3039.7,3039.5,2.30301]
[1720334844228,4.30310214,3039.7,3039.5,2.30301]
[1720334844479,4.30314064,3039.6,3039.5,2.30301]
[1720334844689,3.16413399,3039.7,3039.6,2.30293]
[1720334844967,1.13893303,3039.7,3039.6,2.30293]
[1720334845164,3.16413399,3039.8,3039.7,2.30285]
[1720334845356,1.13891958,3039.8,3039.7,4.74345]
[1720334845564,2.17,3040.8,3039.7,4.74345]
[1720334845565,3.16370805,3040.0,3039.9,2.3027]
[1720334845765,3.16370805,3040.0,3039.9,4.6054]
[1720334845965,1.13884298,3040.0,3039.9,4.6054]
[1720334846168,3.16370805,3040.1,3040.0,2.30263]
[1720334846544,3.16370805,3040.2,3040.1,2.30255]
[1720334846883,4.30249129,3040.2,3040.1,2.30255]
[1720334848446,4.47204,3040.8,3040.1,2.30255]
[1720334848647,3.1633091,3040.2,3040.1,2.30255]
[1720334848956,0.927081,3040.7,3040.1,2.30255]
[1720334849159,3.16332053,3040.2,3040.1,2.30255]
[1720334849559,4.30214636,3040.2,3040.1,2.30255]
[1720334849880,3.16335097,3040.2,3040.1,2.30255]
[1720334850182,3.16330197,3040.2,3040.1,2.30255]
[1720334850343,4.30209068,3040.2,3040.1,2.30255]
[1720334850676,3.16330197,3040.2,3040.1,2.30255]
[1720334850854,4.30209068,3040.2,3040.1,2.30255]
[1720334851055,1.13878871,3040.2,3040.1,2.30255]
[1720334851284,1.13878871,3040.6,3040.1,2.30255]
[1720334851592,1.34537568,3040.5,3040.1,2.30255]
[1720334851742,0.20658697,3040.5,3040.1,2.30255]
[1720334852081,3.16333037,3040.2,3040.1,2.30255]
[1720334852296,4.30215964,3040.2,3040.1,2.30255]
[1720334852580,3.16333037,3040.3,3040.1,2.30255]
[1720334852985,1.13876221,3040.2,3040.1,2.30255]
[1720334853449,3.16333037,3040.3,3040.1,2.30255]
[1720334854997,2.17,3040.8,3040.2,2.3106]
[1720334855204,3.16322323,3040.3,3040.2,2.3106]
[1720334855489,2.17,3040.8,3040.4,2.30232]
[1720334855490,3.16322323,3040.6,3040.4,2.30232]
[1720334855699,3.16322323,3040.6,3040.5,2.30225]
[1720334855856,3.16322323,3040.7,3040.5,2.30225]
[1720334856059,1.13861187,3040.6,3040.5,2.30225]
[1720334856571,3.16322323,3040.7,3040.5,2.30225]
[1720334856871,1.13863958,3040.6,3040.4,2.30232]
[1720334857191,3.16322323,3040.7,3040.4,2.30232]
[1720334857396,1.13864005,3040.6,3040.4,2.30232]
[1720334857695,3.16322323,3040.7,3040.4,2.30232]
[1720334858275,2.17,3040.8,3040.4,2.30232]
[1720334858509,4.30154758,3040.7,3040.4,2.30232]
[1720334858665,2.17,3040.8,3040.4,2.30232]
[1720334858866,4.30154702,3040.7,3040.4,2.30232]
[1720334859085,3.16290222,3040.7,3040.4,2.30232]
[1720334859309,3.16290222,3040.7,3039.9,4.6133]
[1720334859310,4.30157665,3040.6,3039.9,4.6133]
[1720334859488,3.16290222,3040.5,3040.0,5.30262]
[1720334859693,2.9492547,3040.7,3040.1,3.0]
[1720334859694,4.30157665,3040.4,3040.1,3.0]
[1720334860014,3.16290222,3040.4,3040.1,3.0]
[1720334860315,3.16290222,3040.4,3040.0,5.30262]